Cogmind - Beta 14 @@@ ROGUE MODE // 2024.09.05 @ 23:35:02 Player: hvatnajokl Result: Destroyed by Y-45 Defender with Heavy Assault Rifle Performance ------------- Evolutions (2) 1000 Regions Visited (3) 600 Robots Destroyed (27) 135 Value Destroyed (747) 747 Prototype IDs (1) 20 Alien Tech Used (0) 0 Bonus (0) 0 TOTAL SCORE: 2502 Bonus ------- None Cogmind --------- Core Integrity 0/550 Matter 240/300 Energy 46/100 System Corruption 0% Temperature Cool (9) Movement Walking (130) Location -8/Materials Parts ------- > --- POWER (2) -------- (None) > --- PROPULSION (4) --- Titanium Leg Titanium Leg > --- UTILITY (3) ------ Transport Network Coupler ECM Suite > --- WEAPON (2) ------- (None) > --- INVENTORY (5) ---- (None) Peak State ------------ > --- POWER ------------ Ion Engine Ion Engine > --- PROPULSION ------- Aluminum Leg Aluminum Leg Aluminum Leg Aluminum Leg > --- UTILITY ---------- Small Storage Unit Transport Network Coupler Improved Propulsion Shielding > --- WEAPON ----------- Beam Rifle Advanced Beam Cannon > --- INVENTORY -------- Tractor Beam Field Recycling Unit Small Laser Light Assault Rifle Heavy Assault Rifle Heavy Assault Rifle Mini Grenade Launcher [Rating: 17] Favorites ----------- Power Light Ion Engine Engine Light Ion Engine Propulsion Aluminum Leg Leg Aluminum Leg Wheel Compact Wheel Utility Small Storage Unit Device Tractor Beam Storage Small Storage Unit Processor Transport Network Coupler Protection Improved Propulsion Shielding Weapon Light Assault Rifle Energy Gun Beam Rifle Energy Cannon Advanced Beam Cannon Ballistic Gun Light Assault Rifle Launcher Mini Grenade Launcher Special Weapon Welding Torch Build | -11 -10 -9 -8 ------- Run | Yrd Mat Mat Mat Slots Evolved 4 | . . 2 2 Power 1 | . . . 1 Propulsion 2 | . . 2 . Utility 1 | . . . 1 Weapon . | . . . . Parts Attached 39 | 6 4 9 20 Power 6 | 1 1 1 3 Engine 6 | 1 1 1 3 Core . | . . . . Reactor . | . . . . Propulsion 13 | 2 2 5 4 Treads . | . . . . Leg 11 | . 2 5 4 Wheel 2 | 2 . . . Hover . | . . . . Flight . | . . . . Utility 9 | 1 1 1 6 Device 6 | . 1 . 5 Storage 1 | 1 . . . Processor 1 | . . 1 . Hackware . | . . . . Protection 1 | . . . 1 Artifact . | . . . . Weapon 11 | 2 . 2 7 Energy Gun 2 | . . 1 1 Energy Cannon 1 | . . . 1 Ballistic Gun 4 | 2 . . 2 Ballistic Cannon . | . . . . Launcher 3 | . . 1 2 Special Weapon 1 | . . . 1 Impact Weapon . | . . . . Slashing Weapon . | . . . . Piercing Weapon . | . . . . Special Melee Weapon . | . . . . Unidentified Prototypes 1 | . . . 1 Parts Lost 25 | . 3 4 18 Power 6 | . 1 1 4 Propulsion 9 | . 2 2 5 Utility 4 | . . . 4 Weapon 6 | . . 1 5 Highest Loss Streak 13 | . 2 3 13 To Critical Strikes . | . . . . Average Slot Usage (%) 86 | . 92 96 61 Engine 9 | . 11 10 5 Leg 29 | . 13 42 23 Wheel 3 | . 14 . . Device 5 | . 10 3 3 Storage 10 | . 14 11 6 Processor 6 | . . 7 9 Energy Gun 2 | . . 4 3 Ballistic Gun 15 | . 28 14 4 Launcher 1 | . . 2 . Peak Build Rating 17 | 6 7 11 17 Average Rating 8 | 4 6 10 9 On Entrance 6 | . 6 7 11 Naked Turns . | . . . . Heaviest Build 22 | 10 11 14 22 Greatest Support 40 | 26 26 40 40 Greatest Overweight (x) 2 | . 1 . 2 Average Overweight (x) . | . . . . Largest Inventory Capacity 8 | 8 8 8 8 Average Capacity 7 | 7 8 8 7 Most Carried 8 | 1 4 8 8 Average Carried 4 | . 1 6 4 Final Capacity 8 | 8 8 8 5 Final Carried 8 | 1 4 8 . Class Distribution -------------------- 58% | Scavenger-Mutant 41% | Mutant Dominant Class ---------------- Mutant | -10/Materials Scavenger-Mutant | -9/Materials Scavenger-Mutant | -8/Materials Resources | -11 -10 -9 -8 ----------- Run | Yrd Mat Mat Mat Matter Collected 856 | 230 121 162 343 Remotely 128 | . 62 58 8 Salvage Created 1077 | . 460 337 280 Parts 62 | . 18 19 25 Haulers Intercepted 2 | . . 1 1 Recyclers Shooed 1 | . 1 . . Parts Field Recycled . | . . . . Retrieved Matter . | . . . . Parts Self-Destructed . | . . . . Prevented . | . . . . Kills | -11 -10 -9 -8 ------- Run | Yrd Mat Mat Mat Combat Hostiles Destroyed 21 | . 6 6 9 Guns 15 | . 6 6 3 Cannons 3 | . . . 3 AOE 3 | . . . 3 Classes Destroyed 6 | . 2 2 2 Builder 2 | . . . 2 Hauler 2 | . . 1 1 Recycler 2 | . 2 . . Swarmer 6 | . . . 6 Grunt 9 | . 6 . 3 Sentry 6 | . . 6 . Best Kill Streak 4 | . 3 3 4 Combat Bots Only 4 | . 2 2 4 Max Kills in Single Turn 2 | . 1 2 2 Gunslinging . | . . . . Exploded 2 | . . . 2 Melee . | . . . . Uniques/NPCs Destroyed . | . . . . Combat | -11 -10 -9 -8 -------- Run | Yrd Mat Mat Mat Hostile Shots Fired 264 | . 41 50 173 Missed 75 | . 14 17 44 Damage Taken 2785 | . 349 518 1918 Core 736 | . 131 42 563 Absorbed by Shields . | . . . . Redirected to Shielding 108 | . . . 108 Regen/Repaired (Parts) 63 | . . 63 . Core Remaining (%) 78 | 100 47 89 . Volleys Fired 113 | . 28 43 42 Largest 2 | . 2 2 2 Hottest 124 | . 40 76 124 Shots Fired 191 | . 56 82 53 Gun 168 | . 56 70 42 Cannon 8 | . . . 8 Launcher 14 | . . 12 2 Special 1 | . . . 1 Kinetic 142 | . 56 65 21 Thermal 35 | . . 5 30 Explosive 14 | . . 12 2 Electromagnetic . | . . . . Robot Hit Streak 9 | . 9 5 8 Robot Miss Streak 5 | . 2 4 5 Penetration Max . | . . . . Secondary Targets 3 | . 3 . . Max Gunslinging Chain 1 | . 1 . . Shots Hit Robots 115 | . 41 43 31 Core Hits 59 | . 20 19 20 Critical Kills 2 | . 2 . . Critical Parts Destroyed 1 | . 1 . . Critical Strikes 4 | . 3 1 . Burn 1 | . . 1 . Destroy 3 | . 3 . . Melee Attacks . | . . . . Impact . | . . . . Slashing . | . . . . Piercing . | . . . . Sneak Attacks . | . . . . Combat Hostiles . | . . . . Follow-up Attacks . | . . . . Damage Inflicted 1388 | . 326 414 648 Guns 1028 | . 326 328 374 Cannons 103 | . . . 103 Explosions 257 | . . 86 171 Melee . | . . . . Ramming . | . . . . Kinetic 794 | . 326 285 183 Thermal 337 | . . 43 294 Explosive 257 | . . 86 171 Electromagnetic . | . . . . Impact . | . . . . Slashing . | . . . . Piercing . | . . . . Highest Corruption . | . . . . Average Corruption . | . . . . Corruption Purged . | . . . . Corruption Blocked . | . . . . Overload Shots . | . . . . Overflow Damage 9 | . . . 9 Projectiles . | . . . . Explosions 9 | . . . 9 Melee . | . . . . Knockbacks . | . . . . Impact . | . . . . Kinetic . | . . . . Secondary . | . . . . Self-Inflicted Damage 93 | . . 31 62 Shots 4 | . . 2 2 Rammed . | . . . . Targets Rammed . | . . . . Kicked . | . . . . Crushed . | . . . . Highest Temperature 538 | . 23 126 538 Average Temperature 119 | . 9 31 226 Received Heat Transfer 861 | . 213 189 459 Effects 10 | . . . 10 Shutdowns 3 | . . . 3 Energy Bleed 1 | . . . 1 Interference 3 | . . . 3 Matter Decay 3 | . . . 3 Siege Activations . | . . . . Robots Corrupted . | . . . . Combat Hostiles . | . . . . Parts Fried . | . . . . Impact Corruptions . | . . . . Robots Melted . | . . . . Combat Hostiles . | . . . . Parts Melted . | . . . . Heat Transferred 828 | . . 185 643 Parts Sabotaged . | . . . . Parts Stolen . | . . . . Parts Stripped . | . . . . Power Chain Reactions . | . . . . Alert | -11 -10 -9 -8 ------- Run | Yrd Mat Mat Mat Peak Influence 311 | . 175 311 259 Initial 73 | . . 73 65 Average 143 | . 71 192 158 Maximum Alert Level 1 | . . 1 1 Low Security (%) 73 | 100 100 49 80 Level 1 26 | . . 50 19 Level 2 . | . . . . Level 3 . | . . . . Level 4 . | . . . . Level 5 . | . . . . High Security . | . . . . Max Security . | . . . . Squads Dispatched 5 | . 1 1 3 Investigation 1 | . . . 1 Extermination . | . . . . Reinforcement 4 | . 1 1 2 Assault . | . . . . Garrison . | . . . . Intercept . | . . . . Searches Triggered . | . . . . Construction Impeded . | . . . . Haulers Reinforced . | . . . . Active Scanning Responses . | . . . . Cargo Convoy Interrupts . | . . . . Stealth | -11 -10 -9 -8 --------- Run | Yrd Mat Mat Mat Distress Signals 1 | . . 1 . Communications Jammed . | . . . . Distress Signals . | . . . . Times Spotted 42 | . 9 9 24 Peak Tracking Total 11 | . 3 5 11 Tactical Retreats 6 | . 1 . 5 Traps | -11 -10 -9 -8 ------- Run | Yrd Mat Mat Mat Traps Triggered 1 | . . . 1 Indirectly . | . . . . Trap Hack Attempts . | . . . . Triggered . | . . . . Disarmed 6 | . 6 . . Reprogrammed . | . . . . Reused . | . . . . Traps Extracted . | . . . . Installed . | . . . . Triggered . | . . . . Machines | -11 -10 -9 -8 ---------- Run | Yrd Mat Mat Mat Machines Disabled 2 | . . 1 1 Max in Single Turn 1 | . . 1 1 Machines Repaired . | . . . . Machines Dismantled . | . . . . Machines Sabotaged . | . . . . Overloaded Fab Kills . | . . . . Hacking | -11 -10 -9 -8 --------- Run | Yrd Mat Mat Mat Machines Accessed 6 | . 2 3 1 Terminals 4 | . 2 1 1 Fabricators . | . . . . Repair Stations 1 | . . 1 . Recycling Units . | . . . . Scanalyzers 1 | . . 1 . Garrison Access . | . . . . Total Hacks 19 | . 7 9 3 Successful 11 | . 3 7 1 Failed 8 | . 4 2 2 Catastrophic . | . . . . Database Lockouts . | . . . . Manual . | . . . . Terminals 14 | . 7 4 3 Fabricators . | . . . . Repair Stations 3 | . . 3 . Recycling Units . | . . . . Scanalyzers 2 | . . 2 . Garrison Access . | . . . . Terminal Hacks 7 | . 3 3 1 Record 1 | . 1 . . Robot Analysis 1 | . . 1 . Alert Level 1 | . . . 1 Locate Traps 1 | . 1 . . Disarm Traps 1 | . 1 . . Dispatch Records 1 | . . 1 . Maintenance Status 1 | . . 1 . Fabricator Hacks . | . . . . Repair Station Hacks 2 | . . 2 . Scan Component 1 | . . 1 . Repair 1 | . . 1 . Recycling Unit Hacks . | . . . . Scanalyzer 2 | . . 2 . Insert Component 1 | . . 1 . Analyze 1 | . . 1 . Garrison Access Hacks . | . . . . Unauthorized Hacks . | . . . . Terminals . | . . . . Fabricators . | . . . . Repair Stations . | . . . . Recycling Units . | . . . . Scanalyzers . | . . . . Garrison Access . | . . . . Data Cores Recovered . | . . . . Used . | . . . . Hacking Detections 5 | . 2 2 1 Full Trace Events 3 | . 2 . 1 Feedback Events . | . . . . Feedback Blocked . | . . . . Robot Schematics Acquired . | . . . . Robots Built . | . . . . Authchips . | . . . . Time . | . . . . Total Robot Build Rating . | . . . . Part Schematics Acquired 1 | . . 1 . Parts Built . | . . . . Authchips . | . . . . Time . | . . . . Total Part Build Rating . | . . . . Parts Repaired 1 | . . 1 . Time 26 | . . 26 . Parts Recycled . | . . . . Recycled Matter . | . . . . Retrieved Matter . | . . . . Retrieved Components . | . . . . Parts Scanalyzed 1 | . . 1 . Part Schematics Acquired 1 | . . 1 . Parts Damaged . | . . . . Bothacking | -11 -10 -9 -8 ------------ Run | Yrd Mat Mat Mat Used RIF Installer . | . . . . Robots Hacked . | . . . . Non-combat . | . . . . Combat . | . . . . Robot Hacks Applied . | . . . . Relay Couplers Released . | . . . . Fabnet Peak Effective % . | . . . . Robots Rewired . | . . . . Allies Hacked . | . . . . Hacks Repelled . | . . . . Allies | -11 -10 -9 -8 -------- Run | Yrd Mat Mat Mat Total Allies . | . . . . Largest Group . | . . . . Highest-Rated Group . | . . . . Highest-Rated Ally . | . . . . Total Orders . | . . . . Ally Attacks . | . . . . Total Damage . | . . . . Kills . | . . . . Allies Corrupted . | . . . . Allies Melted . | . . . . Intel | -11 -10 -9 -8 ------- Run | Yrd Mat Mat Mat Robot Analysis Total 1 | . . 1 . Derelict Logs Recovered . | . . . . Drone Launches . | . . . . Drone Recoveries . | . . . . Exploration | -11 -10 -9 -8 ------------- Run | Yrd Mat Mat Mat Turns Passed 1226 | 39 338 532 317 Spaces Moved 739 | 33 180 333 193 Core 75 | 1 . . 74 Treads . | . . . . Legs 583 | . 131 333 119 Wheels 81 | 32 49 . . Hover . | . . . . Flight . | . . . . Fastest Speed 50 | 50 90 120 50 Average Speed 118 | 88 142 120 99 Slowest Speed 190 | 90 190 120 150 Overloaded Moves . | . . . . Propulsion Burnouts . | . . . . Robots Hopped . | . . . . Cave-ins Triggered . | . . . . Exploration Rate (%) 21 | 4 40 24 19 Regions Visited 3 Branch Regions . Pre-discovered Areas . | . . . . Known Exits Taken . | . . . . Unknown Exits Taken 3 | 1 1 1 . Scrap Searched . | . . . . Spaces Dug 9 | . . 9 . Terrain Destroyed 106 | . . 89 17 Melee . | . . . . Projectile . | . . . . AOE 106 | . . 89 17 Terrain Rammed . | . . . . Walls Destroyed . | . . . . Machines Disabled . | . . . . Actions | -11 -10 -9 -8 --------- Run | Yrd Mat Mat Mat Total 910 | 39 215 394 262 Wait 3 | . . 3 . Move 736 | 32 179 332 193 Hop . | . . . . Pick Up 14 | 1 4 6 3 Fast Attach 23 | 6 3 5 9 Attach 12 | . 1 3 8 Detach 1 | . . 1 . Swap 4 | . . 1 3 Drop 4 | . . . 4 Fire 113 | . 28 43 42 Melee . | . . . . Ram . | . . . . Kick . | . . . . Crush . | . . . . Escape Stasis . | . . . . Rewire . | . . . . Trap . | . . . . Miscellaneous . | . . . . Route ------- -11/Scrapyard -10/Materials -9/Materials -8/Materials History --------- Turn | Location | Event 22 | -11/Scrapyard | Discovered new exit (range 14) 40 | -11/Scrapyard | Entered Materials 315 | -10/Materials | Build established: Mutant 317 | -10/Materials | Discovered new exit (range 9) 329 | -10/Materials | Core integrity fell below 50% 378 | -10/Materials | Entered another Materials area 378 | -9/Materials | Evolved 2 slots: Propulsion x2 689 | -9/Materials | Build established: Scavenger-Mutant 731 | -9/Materials | Lost 3 parts (1p2n) 770 | -9/Materials | Repaired Aluminum Leg? 896 | -9/Materials | Discovered new exit (range 9) 910 | -9/Materials | Entered another Materials area 910 | -8/Materials | Evolved 2 slots: Power x1, Utility x1 1066 | -8/Materials | Lost 5 parts (2p2n1u) 1173 | -8/Materials | Core integrity fell below 50% 1209 | -8/Materials | Core integrity fell below 20% 1227 | -8/Materials | Destroyed by Y-45 Defender with Heavy Assault Rifle Last Messages --------------- The unstable cave ceiling collapses. U-05 Engineer lays Concrete. ALERT: Hostiles spotted, dispatching reinforcements to Terminal M003. G-47 Trooper suffers critical hit (Burn). U-05 Engineer lays Concrete. Slug penetrates G-47 Trooper. U-05 Engineer lays Concrete. Lgt. Ion Engine destroyed. Acquired Trap Extractor. Triggered Blade Trap. Massive razor-sharp blades shoot up from within the floor. Trap Extractor severed. Structural Scanner severed. Critical hit (Burn: +37). Slug penetrates Wall. Critical hit (Burn: +37). Acquired Titanium Leg. Acquired ECM Suite. Map ----- +----------------------------------------------------+ | | | | | | | | | | | | | ?????????????????????????????????????????????????? | | ?????????????????????????????????????????????????? | | ?????????????????????????????????????????????????? | | ?????????????????????????????????????????????????? | | ?????????????????????????????????????????????????? | | ?????????????????????????????????????????????????? | | ?????????????????????????????????????????????????? | | ?????????????????????????????????????????????????? | | ?????????????????????????????????????????????????? | | ?????????????????????????????????????????????????? | | ?????????????????????????????????????????????????? | | ?????????????????????????????????????????????????? | | ?????????????????????????????????????????????????? | | ?????????????????????????????????????????????????? | | ??????????????????????##?????????????????????????? | | ??????????????????????#Y#####????????????????????? | | ??????????????????????# #????????????????????? | | ??????????????????????# #????????????????????? | | ??????????????????????#! !==#????????????????????? | | ??????????????????????# @= #????????????????????? | | ??????????????????????# == #????????????????????? | | ??????????????? ####### #????????????????????? | | ??????????????? #######ss #????????????????????? | | ??????????????? # #g""" #????????????????????? | | ??????????????? # #g""" #????????????????????? | | ??????????????? + tg""" #????????????????????? | | ??????????????? # # #????????????????????? | | ??????????????? # # # #####?????????? | | ??????????????? ## !###########+#######?????????? | | ????????????????## ! ?????????? | | ????????????????##^ ??????????? | | ????????????????## ^ """ ??????????? | | ????????????????## """ "G" #### ????????????? | | ???????????????### """ " " #### ????????????? | | ???????????????### """ ##???????????????? | | ???????????????## ##???????????????? | | ???????????###### ##???????????????? | | ???????????###### ##???????????????? | | ?????????#### ## ##???????????????? | | ????????##### # ##???????????????? | | ???????? ## # # +##############???????????????? | | ???????? # * = ###########???????????????? | | ???????? ## # ????????????????????????? | | ???????? # " # ????????????????????????? | +----------------------------------------------------+ Best States ------------- Heat Dissipation 31 Energy Generation 15 Energy Capacity 400 Matter Stores 300 Matter Capacity 300 Sight Range 16 Terrain Scan Density 10 Propulsion Shielding 66 Evasion (%) 55 Trap Extractor Capacity 4 Item Schematics ----------------- Tractor Beam | -9/Materials | Scanalyzed Robot Schematics ------------------ None Fabricated ------------ Nothing Alien Tech Used ----------------- None Achievements -------------- Use The Force Challenges ------------ None Game ------ Seed BracePhysicsStorage Manual? 0 Play Time 00:26:08 Cumulative 6.9 hours Start 2024.08.25 @ 10:55:04 End 2024.09.05 @ 23:35:02 Sessions 3 Manual Loads 0 Difficulty Rogue Special Mode None Game No. 14 Rogue 10 Adventurer 4 Explorer 0 Win Type - Total 0 Types 0/0/0/0/0/0/0/0/0 Lore% 3 Gallery% 11 Achievement% 11 Wizard Run 0 Options --------- Layout 1 ASCII 1 Keyboard 0 Movement Mouse Keybinds 0 Fullscreen 1 Font 24/Smallcaps Map View 50x35 Zoom Use 0% Tactical HUD 0 Map Filters NONE Filters NONE Steam 1 RUN: 2265943a-0b82-4aeb-9335-025e74b827a2